[Event "Božićni turnir u VaraždinskimToplicama 26.12.2025."]
[Site "Varazdinske Toplice, Croatia"]
[Date "2025.12.26"]
[Round "8.1"]
[White "Segovic, Goran"]
[Black "Vidovic, Sasa"]
[Result "*"]
[TimeControl "10"]
[WhiteFideId "14508842"]
[BlackFideId "14505010"]
[WhiteElo "2324"]
[BlackElo "2202"]

1. e4 {[%clk 00:10:00]} {[%emt 00:02:20]} d6 {[%clk 00:10:00]} {[%emt
00:00:01]} 2. d4 {[%clk 00:10:00]} Nf6 {[%clk 00:10:00]} {[%emt 00:00:01]} 3.
Nc3 {[%clk 00:10:00]} {[%emt 00:00:01]} c6 {[%clk 00:10:00]} 4. f3 {[%clk
00:10:00]} {[%emt 00:00:05]} e5 {[%clk 00:10:00]} {[%emt 00:00:03]} 5. Nge2
{[%clk 00:10:00]} {[%emt 00:00:01]} Be7 {[%clk 00:10:00]} {[%emt 00:00:03]} 6.
Be3 {[%clk 00:10:00]} {[%emt 00:00:02]} O-O {[%clk 00:10:00]} {[%emt 00:00:19]}
7. Qd2 {[%clk 00:10:00]} b5 {[%clk 00:09:33]} {[%emt 00:00:56]} 8. Ng3 {[%clk
00:09:58]} {[%emt 00:00:02]} Qa5 {[%clk 00:09:03]} {[%emt 00:00:30]} 9. Bd3
{[%clk 00:09:46]} {[%emt 00:00:12]} a6 {[%clk 00:07:02]} {[%emt 00:02:02]} 10.
O-O {[%clk 00:09:43]} {[%emt 00:00:03]} Qc7 {[%clk 00:07:00]} {[%emt 00:00:02]}
11. Nce2 {[%clk 00:09:35]} {[%emt 00:00:08]} c5 {[%clk 00:06:34]} {[%emt
00:00:27]} 12. c3 {[%clk 00:09:32]} {[%emt 00:00:02]} Nc6 {[%clk 00:06:15]}
{[%emt 00:00:19]} 13. Rac1 {[%clk 00:09:19]} {[%emt 00:00:12]} Re8 {[%clk
00:05:28]} {[%emt 00:00:48]} 14. Bb1 {[%clk 00:09:15]} {[%emt 00:00:04]} Bd7
{[%clk 00:05:05]} {[%emt 00:00:23]} 15. h3 {[%clk 00:09:06]} {[%emt 00:00:09]}
Rad8 {[%clk 00:05:03]} {[%emt 00:00:03]} 16. f4 {[%clk 00:08:44]} {[%emt
00:00:21]} exd4 {[%clk 00:04:10]} {[%emt 00:00:53]} 17. cxd4 {[%clk 00:08:39]}
{[%emt 00:00:05]} cxd4 {[%clk 00:04:09]} 18. Nxd4 {[%clk 00:08:30]} {[%emt
00:00:08]} Qb7 {[%clk 00:04:08]} {[%emt 00:00:02]} 19. Ndf5 {[%clk 00:08:14]}
{[%emt 00:00:16]} Bxf5 {[%clk 00:04:05]} {[%emt 00:00:03]} 20. Nxf5 {[%clk
00:08:10]} {[%emt 00:00:04]} Bf8 {[%clk 00:03:59]} {[%emt 00:00:06]} 21. Ng3
{[%clk 00:07:59]} {[%emt 00:00:10]} h5 {[%clk 00:03:27]} {[%emt 00:00:33]} 22.
h4 {[%clk 00:07:27]} {[%emt 00:00:31]} d5 {[%clk 00:03:07]} {[%emt 00:00:20]}
23. e5 {[%clk 00:07:19]} {[%emt 00:00:08]} Ne4 {[%clk 00:02:34]} {[%emt
00:00:34]} 24. Nxe4 {[%clk 00:07:03]} {[%emt 00:00:16]} dxe4 {[%clk 00:02:32]}
{[%emt 00:00:02]} 25. Qc2 {[%clk 00:06:44]} {[%emt 00:00:20]} Nd4 {[%clk
00:02:30]} {[%emt 00:00:01]} 26. Qf2 {[%clk 00:06:27]} {[%emt 00:00:16]} Nf5
{[%clk 00:02:26]} {[%emt 00:00:05]} 27. Rfe1 {[%clk 00:06:08]} {[%emt
00:00:18]} Rc8 {[%clk 00:02:14]} {[%emt 00:00:13]} 28. Kh2 {[%clk 00:05:50]}
{[%emt 00:00:18]} Be7 {[%clk 00:02:04]} {[%emt 00:00:10]} 29. g3 {[%clk
00:05:43]} {[%emt 00:00:07]} Nh6 {[%clk 00:02:02]} {[%emt 00:00:02]} 30. Qe2
{[%clk 00:04:56]} {[%emt 00:00:46]} Ng4+ {[%clk 00:02:01]} {[%emt 00:00:02]} 31.
Kg2 {[%clk 00:04:48]} {[%emt 00:00:07]} f5 {[%clk 00:01:41]} {[%emt 00:00:21]}
32. exf6 {[%clk 00:04:39]} {[%emt 00:00:09]} Bxf6 {[%clk 00:01:39]} {[%emt
00:00:02]} 33. Rcd1 {[%clk 00:04:29]} {[%emt 00:00:09]} Red8 {[%clk 00:01:31]}
{[%emt 00:00:08]} 34. a3 {[%clk 00:04:24]} {[%emt 00:00:06]} Rxd1 {[%clk
00:01:26]} {[%emt 00:00:05]} 35. Rxd1 {[%clk 00:04:22]} {[%emt 00:00:01]} Rd8
{[%clk 00:01:23]} {[%emt 00:00:04]} 36. Re1 {[%clk 00:03:43]} {[%emt 00:00:39]}
Kh8 {[%clk 00:01:12]} {[%emt 00:00:11]} 37. Bc1 {[%clk 00:03:30]} {[%emt
00:00:13]} e3+ {[%clk 00:01:10]} {[%emt 00:00:01]} 38. Qf3 {[%clk 00:03:25]}
{[%emt 00:00:05]} Qe7 {[%clk 00:01:04]} {[%emt 00:00:07]} 39. Qe4 {[%clk
00:03:18]} {[%emt 00:00:07]} Qxe4+ 40. Bxe4 {[%clk 00:03:17]} Rd2+ {[%clk
00:00:57]} {[%emt 00:00:04]} 41. Kg1 {[%clk 00:02:35]} {[%emt 00:00:41]} Bxb2
{[%clk 00:00:46]} {[%emt 00:00:12]} 42. Bxd2 {[%clk 00:02:24]} {[%emt
00:00:10]} exd2 {[%clk 00:00:45]} 43. Rb1 {[%clk 00:02:12]} {[%emt 00:00:13]}
Ne3 {[%clk 00:00:40]} {[%emt 00:00:05]} 44. Bf3 {[%clk 00:02:10]} {[%emt
00:00:02]} Bc1 {[%clk 00:00:39]} {[%emt 00:00:01]} 45. Bxh5 {[%clk 00:01:55]}
{[%emt 00:00:15]} Kh7 {[%clk 00:00:36]} {[%emt 00:00:03]} 46. Bf3 {[%clk
00:01:52]} {[%emt 00:00:03]} g6 {[%clk 00:00:34]} {[%emt 00:00:01]} 47. Be2
{[%clk 00:01:39]} {[%emt 00:00:14]} Kg7 {[%clk 00:00:32]} {[%emt 00:00:02]} 48.
g4 {[%clk 00:01:25]} {[%emt 00:00:14]} Kf6 {[%clk 00:00:31]} {[%emt 00:00:01]}
49. Bf3 {[%clk 00:01:20]} {[%emt 00:00:05]} Ke6 {[%clk 00:00:30]} {[%emt
00:00:02]} 50. Be2 {[%emt 00:00:13]} Kf6 {[%emt 00:00:01]} 51. Kh2 {[%clk
00:01:01]} {[%emt 00:00:04]} Nc4 {[%clk 00:00:26]} {[%emt 00:00:03]} 52. Kg3
{[%clk 00:00:37]} {[%emt 00:00:24]} Nxa3 {[%clk 00:00:26]} {[%emt 00:00:02]} 53.
Rb3 {[%clk 00:00:33]} {[%emt 00:00:03]} Nc4 {[%clk 00:00:25]} {[%emt 00:00:01]}
54. Rd3 {[%clk 00:00:31]} {[%emt 00:00:02]} a5 {[%clk 00:00:20]} {[%emt
00:00:04]} 55. g5+ {[%clk 00:00:30]} Ke7 {[%clk 00:00:20]} {[%emt 00:00:01]} 56.
Rd5 {[%clk 00:00:25]} {[%emt 00:00:05]} Ne3 {[%clk 00:00:17]} {[%emt 00:00:03]}
57. Re5+ {[%clk 00:00:23]} {[%emt 00:00:02]} Kd6 {[%clk 00:00:15]} {[%emt
00:00:02]} 58. Rxb5 {[%clk 00:00:09]} {[%emt 00:00:14]} Nf5+ {[%clk 00:00:13]}
{[%emt 00:00:03]} 59. Kg4 {[%clk 00:00:04]} {[%emt 00:00:04]} a4 {[%clk
00:00:12]} 60. Rb6+ {[%clk 00:00:01]} {[%emt 00:00:03]} Kc7 {[%clk 00:00:11]}
{[%emt 00:00:01]} 61. Ra6 {[%clk 00:00:00]} *

[Event "Božićni turnir u VaraždinskimToplicama 26.12.2025."]
[Site "Varazdinske Toplice, Croatia"]
[Date "2025.12.26"]
[Round "8.2"]
[White "Radic, Goran"]
[Black "Mravunac, Damir"]
[Result "*"]
[TimeControl "10"]
[WhiteFideId "14533995"]
[BlackFideId "14502810"]
[WhiteElo "2051"]
[BlackElo "2044"]

1. d4 {[%clk 00:10:00]} {[%emt 00:02:18]} e6 {[%clk 00:09:57]} {[%emt
00:00:07]} 2. Nc3 {[%clk 00:09:57]} {[%emt 00:00:04]} f5 {[%clk 00:09:55]}
{[%emt 00:00:01]} 3. g4 {[%clk 00:09:54]} {[%emt 00:00:03]} Bb4 {[%clk
00:09:41]} {[%emt 00:00:15]} 4. Bg2 {[%clk 00:09:44]} {[%emt 00:00:09]} Nf6
{[%clk 00:09:30]} {[%emt 00:00:10]} 5. g5 {[%clk 00:09:33]} {[%emt 00:00:12]}
Ne4 {[%clk 00:09:24]} {[%emt 00:00:06]} 6. Bxe4 {[%clk 00:09:27]} {[%emt
00:00:05]} fxe4 {[%clk 00:09:23]} {[%emt 00:00:02]} 7. Bf4 {[%clk 00:09:15]}
{[%emt 00:00:12]} O-O {[%clk 00:09:14]} {[%emt 00:00:09]} 8. e3 {[%clk
00:09:12]} {[%emt 00:00:04]} d6 {[%clk 00:09:06]} {[%emt 00:00:07]} 9. Nge2
{[%clk 00:09:09]} {[%emt 00:00:03]} Nc6 {[%clk 00:08:48]} {[%emt 00:00:18]} 10.
a3 {[%clk 00:09:07]} {[%emt 00:00:02]} Bxc3+ {[%clk 00:08:44]} {[%emt
00:00:03]} 11. Nxc3 {[%clk 00:09:06]} {[%emt 00:00:02]} Qe7 {[%clk 00:08:11]}
{[%emt 00:00:33]} 12. Qh5 {[%clk 00:08:59]} {[%emt 00:00:07]} Rf5 {[%clk
00:07:16]} {[%emt 00:00:55]} 13. h4 {[%clk 00:08:27]} {[%emt 00:00:32]} Nxd4
{[%clk 00:06:58]} {[%emt 00:00:18]} 14. O-O-O {[%clk 00:08:19]} {[%emt
00:00:08]} e5 {[%clk 00:06:30]} {[%emt 00:00:29]} 15. Bg3 {[%clk 00:08:15]}
{[%emt 00:00:03]} Nc6 {[%clk 00:06:01]} {[%emt 00:00:27]} 16. Nxe4 {[%clk
00:07:36]} {[%emt 00:00:41]} Be6 {[%clk 00:05:55]} {[%emt 00:00:06]} 17. Qe2
{[%clk 00:07:13]} {[%emt 00:00:22]} Qf7 {[%clk 00:05:48]} {[%emt 00:00:07]} 18.
g6 {[%clk 00:07:03]} {[%emt 00:00:11]} Qxg6 {[%clk 00:05:30]} {[%emt 00:00:17]}
19. Ng5 {[%clk 00:06:55]} {[%emt 00:00:08]} Bd7 {[%clk 00:05:24]} {[%emt
00:00:07]} 20. Rdg1 {[%clk 00:06:53]} {[%emt 00:00:01]} Rxg5 {[%clk 00:05:06]}
{[%emt 00:00:19]} 21. hxg5 {[%clk 00:06:48]} {[%emt 00:00:05]} Bf5 {[%clk
00:04:56]} {[%emt 00:00:10]} 22. f3 {[%clk 00:06:39]} {[%emt 00:00:09]} Ne7
{[%clk 00:04:44]} {[%emt 00:00:12]} 23. e4 {[%clk 00:06:21]} {[%emt 00:00:18]}
Be6 {[%clk 00:04:41]} {[%emt 00:00:03]} 24. Bf2 {[%clk 00:06:12]} {[%emt
00:00:08]} Qf7 {[%clk 00:04:33]} {[%emt 00:00:09]} 25. Be3 {[%clk 00:05:55]}
{[%emt 00:00:17]} Rf8 {[%clk 00:04:25]} {[%emt 00:00:09]} 26. Qh2 {[%clk
00:05:51]} {[%emt 00:00:03]} Qg6 {[%clk 00:04:22]} {[%emt 00:00:03]} 27. Rf1
{[%clk 00:05:30]} {[%emt 00:00:20]} b5 {[%clk 00:04:12]} {[%emt 00:00:11]} 28.
Qd2 {[%clk 00:05:29]} {[%emt 00:00:01]} Bc4 {[%clk 00:04:00]} {[%emt 00:00:12]}
29. Rf2 {[%clk 00:05:25]} {[%emt 00:00:04]} Nc6 {[%clk 00:03:49]} {[%emt
00:00:11]} 30. Qc3 {[%clk 00:05:10]} {[%emt 00:00:15]} Nd4 {[%clk 00:03:27]}
{[%emt 00:00:23]} 31. Bxd4 {[%clk 00:04:28]} {[%emt 00:00:42]} exd4 {[%clk
00:03:25]} {[%emt 00:00:01]} 32. Qxd4 {[%clk 00:04:25]} {[%emt 00:00:02]} Qxg5+
{[%clk 00:02:56]} {[%emt 00:00:30]} 33. Qd2 {[%clk 00:04:25]} Qf6 {[%clk
00:02:39]} {[%emt 00:00:17]} 34. f4 {[%clk 00:04:15]} {[%emt 00:00:10]} a5
{[%clk 00:02:20]} {[%emt 00:00:19]} 35. Qxa5 {[%clk 00:04:08]} {[%emt
00:00:08]} Qd4 {[%clk 00:02:13]} {[%emt 00:00:07]} 36. Qe1 {[%clk 00:04:00]}
{[%emt 00:00:08]} b4 {[%clk 00:02:05]} {[%emt 00:00:08]} 37. Rd2 {[%clk
00:03:23]} {[%emt 00:00:37]} Qf6 {[%clk 00:02:00]} {[%emt 00:00:05]} 38. Qh4
{[%clk 00:02:53]} {[%emt 00:00:31]} bxa3 {[%clk 00:00:52]} {[%emt 00:01:08]} 39.
Qxh7+ {[%clk 00:02:20]} {[%emt 00:00:32]} Kf7 {[%clk 00:00:49]} {[%emt
00:00:02]} 40. Qh5+ {[%clk 00:01:14]} {[%emt 00:01:06]} Ke7 {[%clk 00:00:48]}
{[%emt 00:00:02]} 41. e5 {[%clk 00:01:05]} {[%emt 00:00:08]} Qxf4 {[%clk
00:00:38]} {[%emt 00:00:10]} 42. exd6+ {[%clk 00:00:56]} {[%emt 00:00:09]} cxd6
{[%clk 00:00:36]} {[%emt 00:00:02]} 43. Re1+ {[%clk 00:00:55]} {[%emt
00:00:01]} Kd7 {[%clk 00:00:33]} {[%emt 00:00:03]} 44. Qh3+ {[%clk 00:00:43]}
{[%emt 00:00:12]} Rf5 {[%clk 00:00:27]} {[%emt 00:00:06]} 45. Qxa3 {[%clk
00:00:42]} {[%emt 00:00:01]} Rc5 {[%clk 00:00:18]} {[%emt 00:00:09]} 46. Qa7+
{[%clk 00:00:39]} {[%emt 00:00:03]} Kc6 {[%clk 00:00:16]} {[%emt 00:00:02]} 47.
Qa8+ {[%clk 00:00:34]} {[%emt 00:00:05]} Kc7 {[%clk 00:00:16]} 48. Re7+ {[%clk
00:00:32]} {[%emt 00:00:01]} Kb6 {[%clk 00:00:10]} {[%emt 00:00:07]} 49. Rb7+
{[%clk 00:00:27]} {[%emt 00:00:04]} Kc6 {[%clk 00:00:07]} {[%emt 00:00:03]} 50.
Rf7+ {[%clk 00:00:25]} {[%emt 00:00:02]} *

[Event "Božićni turnir u VaraždinskimToplicama 26.12.2025."]
[Site "Varazdinske Toplice, Croatia"]
[Date "2025.12.26"]
[Round "8.3"]
[White "Mitrovic, Boris"]
[Black "Petrus, Adrian"]
[Result "*"]
[TimeControl "10"]
[WhiteFideId "14610655"]
[BlackFideId "14573652"]
[WhiteElo "1968"]
[BlackElo "1636"]

1. Nf3 {[%clk 00:10:00]} {[%emt 00:09:07]} f5 {[%clk 00:10:00]} {[%emt
00:00:02]} 2. d4 {[%clk 00:10:00]} {[%emt 00:00:01]} Nf6 {[%clk 00:10:00]}
{[%emt 00:00:01]} 3. c4 {[%clk 00:10:00]} g6 {[%clk 00:10:00]} {[%emt
00:00:02]} 4. Nc3 {[%clk 00:10:00]} Bg7 {[%clk 00:09:57]} {[%emt 00:00:13]} 5.
e3 {[%clk 00:09:58]} {[%emt 00:00:01]} O-O {[%clk 00:09:56]} {[%emt 00:00:02]}
6. Bd3 {[%clk 00:09:57]} d6 {[%clk 00:09:51]} {[%emt 00:00:05]} 7. O-O {[%clk
00:09:53]} {[%emt 00:00:03]} Nc6 {[%clk 00:09:47]} {[%emt 00:00:05]} 8. a3
{[%clk 00:09:52]} {[%emt 00:00:01]} e5 {[%clk 00:09:44]} {[%emt 00:00:03]} 9.
d5 {[%clk 00:09:39]} {[%emt 00:00:12]} e4 {[%clk 00:09:23]} {[%emt 00:00:22]}
10. dxc6 {[%clk 00:09:37]} {[%emt 00:00:01]} bxc6 {[%clk 00:09:21]} {[%emt
00:00:02]} 11. Be2 {[%clk 00:09:34]} {[%emt 00:00:03]} exf3 12. Bxf3 {[%clk
00:09:33]} Bd7 {[%clk 00:09:07]} {[%emt 00:00:11]} 13. Qc2 {[%clk 00:09:28]}
{[%emt 00:00:05]} Ng4 {[%clk 00:09:02]} {[%emt 00:00:04]} 14. Bxg4 {[%clk
00:09:11]} {[%emt 00:00:17]} fxg4 {[%clk 00:09:01]} {[%emt 00:00:02]} 15. b3
{[%clk 00:09:03]} {[%emt 00:00:07]} Qh4 {[%clk 00:08:33]} {[%emt 00:00:28]} 16.
g3 {[%clk 00:08:52]} {[%emt 00:00:12]} Qh3 {[%clk 00:08:25]} {[%emt 00:00:09]}
17. Bb2 {[%clk 00:08:49]} {[%emt 00:00:03]} Rae8 {[%clk 00:08:20]} {[%emt
00:00:04]} 18. Rae1 {[%clk 00:08:14]} {[%emt 00:00:35]} Rf5 {[%clk 00:07:56]}
{[%emt 00:00:25]} 19. Nd1 {[%clk 00:07:58]} {[%emt 00:00:15]} Bxb2 {[%clk
00:07:29]} {[%emt 00:00:27]} 20. Qxb2 {[%clk 00:07:57]} {[%emt 00:00:01]} Rf3
{[%clk 00:07:20]} {[%emt 00:00:09]} 21. Kh1 {[%clk 00:06:54]} {[%emt 00:01:03]}
Re5 {[%clk 00:07:03]} {[%emt 00:00:17]} 22. Rg1 {[%clk 00:06:53]} {[%emt
00:00:01]} c5 {[%clk 00:06:58]} {[%emt 00:00:06]} 23. e4 {[%clk 00:06:44]}
{[%emt 00:00:08]} Bc6 {[%clk 00:06:53]} {[%emt 00:00:06]} 24. Qc2 {[%clk
00:06:41]} {[%emt 00:00:01]} Qh6 {[%clk 00:06:30]} {[%emt 00:00:25]} 25. Re3
{[%clk 00:06:28]} {[%emt 00:00:13]} Rxe3 {[%clk 00:06:26]} {[%emt 00:00:04]} 26.
Nxe3 {[%clk 00:06:23]} {[%emt 00:00:05]} Bxe4+ {[%clk 00:06:25]} {[%emt
00:00:01]} *

[Event "Božićni turnir u VaraždinskimToplicama 26.12.2025."]
[Site "Varazdinske Toplice, Croatia"]
[Date "2025.12.26"]
[Round "8.4"]
[White "Sagovac, Kristijan"]
[Black "Srsan, Matija"]
[Result "*"]
[TimeControl "10"]
[WhiteFideId "14542960"]
[BlackFideId "14520001"]
[WhiteElo "2014"]
[BlackElo "1942"]

1. e4 {[%clk 00:10:00]} {[%emt 00:17:52]} c5 {[%clk 00:09:59]} {[%emt
00:00:02]} 2. Nf3 {[%clk 00:09:59]} e6 {[%clk 00:09:58]} 3. d4 {[%clk
00:09:58]} cxd4 4. Nxd4 Nf6 {[%clk 00:09:55]} {[%emt 00:00:02]} 5. Nc3 {[%clk
00:09:58]} Bb4 {[%clk 00:09:54]} {[%emt 00:00:01]} 6. e5 {[%clk 00:09:56]}
{[%emt 00:00:02]} Nd5 {[%clk 00:09:53]} {[%emt 00:00:01]} 7. Bd2 {[%clk
00:09:56]} Nxc3 {[%clk 00:09:15]} {[%emt 00:00:38]} 8. bxc3 {[%clk 00:09:54]}
{[%emt 00:00:02]} Be7 {[%clk 00:09:13]} {[%emt 00:00:01]} 9. Qg4 {[%clk
00:09:47]} {[%emt 00:00:07]} O-O {[%clk 00:08:57]} {[%emt 00:00:16]} 10. Bh6
{[%clk 00:09:40]} {[%emt 00:00:06]} g6 {[%clk 00:08:56]} {[%emt 00:00:02]} 11.
Bxf8 {[%clk 00:09:38]} {[%emt 00:00:02]} Bxf8 {[%clk 00:08:52]} {[%emt
00:00:05]} 12. Bd3 {[%clk 00:09:34]} {[%emt 00:00:03]} Nc6 {[%clk 00:08:35]}
{[%emt 00:00:17]} 13. Nf3 {[%clk 00:09:07]} {[%emt 00:00:27]} f5 {[%clk
00:08:21]} {[%emt 00:00:14]} 14. exf6 {[%clk 00:08:50]} {[%emt 00:00:17]} Qxf6
{[%clk 00:08:19]} {[%emt 00:00:02]} 15. O-O {[%clk 00:08:48]} {[%emt 00:00:02]}
d5 {[%clk 00:07:59]} {[%emt 00:00:20]} 16. Qg5 {[%clk 00:08:17]} {[%emt
00:00:31]} Qg7 {[%clk 00:07:07]} {[%emt 00:00:52]} 17. Rfe1 {[%clk 00:08:09]}
{[%emt 00:00:09]} Be7 {[%clk 00:07:01]} {[%emt 00:00:06]} 18. Qg3 {[%clk
00:08:07]} {[%emt 00:00:01]} Bf6 {[%clk 00:06:53]} {[%emt 00:00:07]} 19. Nd4
{[%clk 00:07:43]} {[%emt 00:00:24]} Nxd4 20. cxd4 {[%clk 00:07:41]} Bxd4 {[%clk
00:06:30]} {[%emt 00:00:02]} 21. Rab1 {[%clk 00:07:34]} {[%emt 00:00:07]} e5
{[%clk 00:05:49]} {[%emt 00:00:42]} 22. c4 {[%clk 00:06:50]} {[%emt 00:00:44]}
e4 {[%clk 00:05:18]} {[%emt 00:00:31]} 23. cxd5 {[%clk 00:06:21]} {[%emt
00:00:29]} Be5 {[%clk 00:05:15]} {[%emt 00:00:04]} 24. Qe3 {[%clk 00:05:36]}
{[%emt 00:00:44]} exd3 {[%clk 00:03:38]} {[%emt 00:01:37]} 25. Qxe5 {[%clk
00:05:34]} {[%emt 00:00:02]} Qxe5 {[%clk 00:03:27]} {[%emt 00:00:11]} 26. Rxe5
{[%clk 00:05:33]} Bf5 {[%clk 00:03:26]} {[%emt 00:00:01]} 27. d6 {[%clk
00:04:56]} {[%emt 00:00:37]} Rd8 {[%clk 00:02:45]} {[%emt 00:00:41]} 28. Rd5
{[%clk 00:04:50]} {[%emt 00:00:05]} Re8 {[%clk 00:02:11]} {[%emt 00:00:35]} 29.
Rd1 {[%clk 00:03:53]} {[%emt 00:00:57]} Kf7 {[%clk 00:01:54]} {[%emt 00:00:17]}
30. f3 {[%clk 00:03:29]} {[%emt 00:00:24]} h5 {[%clk 00:01:49]} {[%emt
00:00:05]} 31. h3 {[%clk 00:03:28]} {[%emt 00:00:01]} h4 {[%clk 00:01:48]}
{[%emt 00:00:02]} 32. Rd4 {[%clk 00:02:55]} {[%emt 00:00:32]} g5 {[%clk
00:01:43]} {[%emt 00:00:04]} 33. Rd2 {[%clk 00:02:47]} {[%emt 00:00:08]} Ke6
{[%clk 00:01:28]} {[%emt 00:00:16]} 34. Kf2 {[%clk 00:02:37]} {[%emt 00:00:10]}
Ke5 {[%clk 00:01:14]} {[%emt 00:00:14]} 35. Rb4 {[%clk 00:02:27]} {[%emt
00:00:09]} b6 {[%clk 00:00:58]} {[%emt 00:00:17]} 36. Rb5+ {[%clk 00:02:07]}
{[%emt 00:00:20]} Ke6 {[%clk 00:00:54]} {[%emt 00:00:04]} 37. Rd1 {[%clk
00:01:55]} {[%emt 00:00:12]} Rd8 {[%clk 00:00:54]} 38. Re1+ {[%clk 00:01:43]}
{[%emt 00:00:12]} Kf6 {[%clk 00:00:53]} 39. Rd5 {[%clk 00:01:39]} {[%emt
00:00:05]} Rd7 {[%clk 00:00:48]} {[%emt 00:00:05]} 40. Re7 {[%clk 00:01:27]}
{[%emt 00:00:12]} Rxd6 {[%clk 00:00:40]} {[%emt 00:00:08]} 41. Rxd6+ {[%clk
00:01:11]} {[%emt 00:00:17]} Kxe7 {[%clk 00:00:39]} 42. Rd4 {[%clk 00:01:06]}
{[%emt 00:00:05]} a6 {[%clk 00:00:36]} {[%emt 00:00:03]} 43. Ke3 {[%clk
00:01:03]} {[%emt 00:00:02]} Ke6 {[%clk 00:00:32]} {[%emt 00:00:04]} 44. f4
{[%clk 00:01:03]} {[%emt 00:00:01]} gxf4+ {[%clk 00:00:30]} {[%emt 00:00:02]}
45. Rxf4 {[%clk 00:01:01]} {[%emt 00:00:03]} b5 {[%clk 00:00:26]} {[%emt
00:00:03]} 46. Rxh4 {[%clk 00:01:00]} a5 {[%clk 00:00:25]} {[%emt 00:00:01]} 47.
g4 {[%clk 00:00:59]} Bg6 {[%clk 00:00:23]} {[%emt 00:00:02]} 48. Rh6 {[%clk
00:00:58]} {[%emt 00:00:01]} Kf7 {[%clk 00:00:22]} 49. g5 {[%clk 00:00:53]}
{[%emt 00:00:05]} b4 {[%clk 00:00:18]} {[%emt 00:00:04]} 50. Rh8 {[%clk
00:00:50]} {[%emt 00:00:02]} a4 {[%clk 00:00:16]} {[%emt 00:00:03]} 51. Rb8
{[%clk 00:00:47]} {[%emt 00:00:02]} b3 {[%clk 00:00:14]} {[%emt 00:00:03]} 52.
axb3 {[%clk 00:00:46]} {[%emt 00:00:01]} axb3 {[%clk 00:00:14]} 53. Rxb3 {[%clk
00:00:45]} {[%emt 00:00:02]} Bf5 {[%clk 00:00:12]} {[%emt 00:00:02]} 54. h4
{[%clk 00:00:44]} Kg6 {[%clk 00:00:11]} 55. Rb4 {[%clk 00:00:42]} {[%emt
00:00:02]} Kh5 {[%clk 00:00:10]} {[%emt 00:00:01]} 56. Rf4 {[%clk 00:00:41]}
{[%emt 00:00:01]} Bh7 {[%clk 00:00:08]} {[%emt 00:00:02]} 57. Rd4 {[%clk
00:00:38]} {[%emt 00:00:03]} Bg6 {[%clk 00:00:06]} {[%emt 00:00:02]} 58. Rxd3
{[%clk 00:00:33]} {[%emt 00:00:05]} Kxh4 {[%clk 00:00:06]} {[%emt 00:00:01]} 59.
Rd5 {[%clk 00:00:32]} Kg4 {[%clk 00:00:04]} {[%emt 00:00:02]} 60. Kd4 {[%clk
00:00:30]} {[%emt 00:00:02]} Kf4 {[%clk 00:00:03]} 61. Kc5 {[%emt 00:00:07]}
Bf5 62. Rd4+ {[%clk 00:00:19]} {[%emt 00:00:04]} Kxg5 63. Rd5 {[%clk 00:00:18]}
Kf6 {[%clk 00:00:01]} 64. Rd1 {[%clk 00:00:18]} *